Cogmind - Beta 13 @@@ ROGUE MODE // 2024.03.12 @ 17:59:26 Player: OctarineSorcerer Result: Destroyed by G-47 Trooper with Particle Gun Performance ------------- Evolutions (2) 1000 Regions Visited (4) 800 Robots Destroyed (34) 170 Value Destroyed (667) 667 Prototype IDs (0) 0 Alien Tech Used (0) 0 Bonus (0) 0 TOTAL SCORE: 2637 Bonus ------- None Cogmind --------- Core Integrity 0/550 Matter 285/300 Energy 99/100 System Corruption 0% Temperature Cool (9) Movement Core (50) Location -8/Materials Parts ------- > --- POWER (1) -------- (None) > --- PROPULSION (4) --- (None) > --- UTILITY (4) ------ (None) > --- WEAPON (2) ------- (None) > --- INVENTORY (5) ---- Light Nuclear Core VSS Leg Improved Heat Sink Transmission Jammer Utility Shielding Peak State ------------ > --- POWER ------------ Nuclear Core > --- PROPULSION ------- Improved Carbon-fiber Leg Improved Carbon-fiber Leg Improved Carbon-fiber Leg Improved Carbon-fiber Leg > --- UTILITY ---------- Medium Storage Unit Sensor Array Signal Interpreter Improved Terrain Scanner > --- WEAPON ----------- Assault Rifle Mining Laser > --- INVENTORY -------- Improved Ion Engine Improved Ion Engine Carbon-fiber Leg Carbon-fiber Leg Improved Heat Sink Transmission Jammer Transmission Jammer Utility Shielding Medium Laser Medium Laser [Rating: 29] Favorites ----------- Power Ion Engine Engine Ion Engine Power Core Nuclear Core Propulsion Aluminum Leg Leg Aluminum Leg Utility Improved Terrain Scanner Device Improved Terrain Scanner Storage Medium Storage Unit Processor Signal Interpreter Protection Light Armor Plating Weapon Assault Rifle Energy Gun Medium Laser Ballistic Gun Assault Rifle Special Weapon Mining Laser Build | -11 -10 -10 -9 -8 ------- Run | Yrd Mat Min Mat Mat Slots Evolved 4 | . . . 2 2 Power . | . . . . . Propulsion 2 | . . . 2 . Utility 2 | . . . . 2 Weapon . | . . . . . Parts Attached 38 | 8 3 1 7 19 Power 8 | 2 2 . 1 3 Engine 6 | 2 2 . 1 1 Core 2 | . . . . 2 Reactor . | . . . . . Propulsion 14 | 2 . . 4 8 Treads . | . . . . . Leg 14 | 2 . . 4 8 Wheel . | . . . . . Hover . | . . . . . Flight . | . . . . . Utility 7 | 2 1 . . 4 Device 3 | 1 . . . 2 Storage 2 | 1 1 . . . Processor 1 | . . . . 1 Hackware . | . . . . . Protection 1 | . . . . 1 Artifact . | . . . . . Weapon 9 | 2 . 1 2 4 Energy Gun 4 | 1 . . 1 2 Energy Cannon . | . . . . . Ballistic Gun 2 | 1 . . 1 . Ballistic Cannon . | . . . . . Launcher . | . . . . . Special Weapon 3 | . . 1 . 2 Impact Weapon . | . . . . . Slashing Weapon . | . . . . . Piercing Weapon . | . . . . . Special Melee Weapon . | . . . . . Unidentified Prototypes . | . . . . . Parts Lost 13 | . 1 . 1 11 Power 2 | . 1 . . 1 Propulsion 4 | . . . 1 3 Utility 3 | . . . . 3 Weapon 4 | . . . . 4 Highest Loss Streak 10 | . 1 . 1 10 To Critical Strikes . | . . . . . Average Slot Usage (%) 93 | . 99 100 97 85 Engine 9 | . 13 14 11 4 Core 1 | . . . . 3 Leg 32 | . 28 28 42 32 Device 13 | . 14 14 11 14 Storage 11 | . 14 14 11 8 Processor 3 | . . . . 8 Energy Gun 9 | . 14 8 10 5 Ballistic Gun 10 | . 14 14 9 6 Naked Turns 53 | . . . . 53 Heaviest Build 23 | 15 20 20 22 23 Greatest Support 72 | 20 20 20 50 72 Greatest Overweight (x) . | . . . . . Average Overweight (x) . | . . . . . Largest Inventory Capacity 10 | 8 10 10 10 10 Average Capacity 9 | 7 9 10 10 9 Most Carried 10 | 2 10 10 10 10 Average Carried 7 | 1 7 9 9 8 Final Capacity 10 | 8 10 10 10 5 Final Carried 10 | 2 10 10 10 5 Class Distribution -------------------- 61% | Mutant 17% | Skirmisher 14% | Scavenger-Mutant 7% | Scavenger-Skirmisher Dominant Class ---------------- Mutant | -10/Materials Mutant | -10/Mines Scavenger-Mutant | -9/Materials Skirmisher | -8/Materials Resources | -11 -10 -10 -9 -8 ----------- Run | Yrd Mat Min Mat Mat Matter Collected 796 | 297 129 . 118 252 Remotely . | . . . . . Salvage Created 1095 | 100 459 . 100 436 Parts 66 | 7 32 . 10 17 Haulers Intercepted 1 | . 1 . . . Recyclers Shooed 2 | . 1 . . 1 Parts Field Recycled . | . . . . . Retrieved Matter . | . . . . . Parts Self-Destructed . | . . . . . Prevented . | . . . . . Kills | -11 -10 -10 -9 -8 ------- Run | Yrd Mat Min Mat Mat Combat Hostiles Destroyed 22 | . 11 . 3 8 Guns 22 | . 11 . 3 8 Classes Destroyed 8 | 2 5 . . 1 Worker 4 | . 4 . . . Tunneler 2 | 2 . . . . Hauler 1 | . 1 . . . Recycler 2 | 1 1 . . . Watcher 3 | . 2 . 1 . Swarmer 11 | . 9 . 2 . Grunt 9 | . 2 . 1 6 Sentry 2 | . . . . 2 Best Kill Streak 13 | 2 13 . 3 6 Combat Bots Only 9 | . 9 . 2 6 Max Kills in Single Turn 2 | 1 2 . 1 1 Gunslinging 1 | . 1 . . . Exploded . | . . . . . Melee . | . . . . . Uniques/NPCs Destroyed . | . . . . . Combat | -11 -10 -10 -9 -8 -------- Run | Yrd Mat Min Mat Mat Hostile Shots Fired 237 | . 43 . 15 179 Missed 76 | . 10 . 5 61 Damage Taken 2248 | . 325 . 175 1748 Core 603 | . 18 . 35 550 Absorbed by Shields . | . . . . . Regen/Repaired (Parts) 55 | . . . 55 . Core Remaining (%) 94 | 100 . 92 91 . Volleys Fired 100 | 8 39 2 10 41 Largest 2 | 2 2 1 2 2 Hottest 120 | 70 70 100 70 120 Shots Fired 193 | 16 78 2 19 78 Gun 186 | 16 78 . 19 73 Cannon . | . . . . . Launcher . | . . . . . Special 7 | . . 2 . 5 Kinetic 97 | 8 39 . 10 40 Thermal 96 | 8 39 2 9 38 Explosive . | . . . . . Electromagnetic . | . . . . . Robot Hit Streak 14 | 3 12 . 2 14 Robot Miss Streak 4 | 4 3 . 4 3 Penetration Max . | . . . . . Secondary Targets 5 | . 3 . 1 1 Max Gunslinging Chain 1 | . 1 . 1 1 Shots Hit Robots 115 | 8 45 . 7 55 Core Hits 56 | 4 22 . 4 26 Critical Kills . | . . . . . Critical Parts Destroyed 2 | . 1 . 1 . Critical Strikes 9 | 1 3 . 1 4 Burn 7 | 1 2 . . 4 Destroy 2 | . 1 . 1 . Melee Attacks . | . . . . . Impact . | . . . . . Slashing . | . . . . . Piercing . | . . . . . Sneak Attacks . | . . . . . Combat Hostiles . | . . . . . Follow-up Attacks . | . . . . . Damage Inflicted 1539 | 99 598 5 92 745 Guns 1436 | 99 595 . 92 650 Cannons . | . . . . . Explosions . | . . . . . Melee . | . . . . . Ramming 55 | . 3 5 . 47 Kinetic 765 | 49 311 . 67 338 Thermal 719 | 50 284 . 25 360 Explosive . | . . . . . Electromagnetic . | . . . . . Impact . | . . . . . Slashing . | . . . . . Piercing . | . . . . . Highest Corruption . | . . . . . Average Corruption . | . . . . . Corruption Purged . | . . . . . Corruption Blocked . | . . . . . Overload Shots . | . . . . . Overflow Damage . | . . . . . Projectiles . | . . . . . Explosions . | . . . . . Melee . | . . . . . Knockbacks . | . . . . . Impact . | . . . . . Kinetic . | . . . . . Secondary . | . . . . . Self-Inflicted Damage 11 | . . . . 11 Shots . | . . . . . Rammed 4 | . . . . 4 Targets Rammed 13 | . 1 1 . 11 Kicked 9 | . 1 1 . 7 Crushed . | . . . . . Highest Temperature 168 | 27 90 22 12 168 Average Temperature 42 | 11 23 11 6 73 Received Heat Transfer 951 | . 48 . 12 891 Siege Activations . | . . . . . Robots Corrupted . | . . . . . Combat Hostiles . | . . . . . Parts Fried . | . . . . . Impact Corruptions . | . . . . . Robots Melted . | . . . . . Combat Hostiles . | . . . . . Parts Melted 3 | . 1 . . 2 Heat Transferred 2616 | 222 999 . 74 1321 Parts Sabotaged . | . . . . . Parts Stolen . | . . . . . Parts Stripped . | . . . . . Power Chain Reactions . | . . . . . Alert | -11 -10 -10 -9 -8 ------- Run | Yrd Mat Min Mat Mat Peak Influence 296 | 15 296 60 125 288 Initial 58 | . 9 58 23 52 Average 100 | 7 123 58 88 109 Maximum Alert Level 1 | . 1 . . 1 Low Security (%) 84 | 100 70 100 100 86 Level 1 15 | . 29 . . 13 Level 2 . | . . . . . Level 3 . | . . . . . Level 4 . | . . . . . Level 5 . | . . . . . High Security . | . . . . . Max Security . | . . . . . Squads Dispatched 7 | . 1 . 1 5 Investigation 2 | . . . 1 1 Extermination . | . . . . . Reinforcement 5 | . 1 . . 4 Assault . | . . . . . Garrison . | . . . . . Intercept . | . . . . . Searches Triggered . | . . . . . Construction Impeded 1 | . . . . 1 Haulers Reinforced . | . . . . . Active Scanning Responses . | . . . . . Cargo Convoy Interrupts . | . . . . . Stealth | -11 -10 -10 -9 -8 --------- Run | Yrd Mat Min Mat Mat Distress Signals 4 | . 1 . 1 2 Communications Jammed . | . . . . . Distress Signals . | . . . . . Times Spotted 60 | . 17 . 5 38 Peak Tracking Total 27 | . 6 . 4 27 Tactical Retreats 4 | . . . 2 2 Traps | -11 -10 -10 -9 -8 ------- Run | Yrd Mat Min Mat Mat Traps Triggered 4 | . 1 . 2 1 Indirectly . | . . . . . Trap Hack Attempts . | . . . . . Triggered . | . . . . . Disarmed . | . . . . . Reprogrammed . | . . . . . Reused . | . . . . . Traps Extracted . | . . . . . Installed . | . . . . . Triggered . | . . . . . Machines | -11 -10 -10 -9 -8 ---------- Run | Yrd Mat Min Mat Mat Machines Disabled . | . . . . . Max in Single Turn . | . . . . . Machines Repaired . | . . . . . Machines Dismantled . | . . . . . Machines Sabotaged . | . . . . . Overloaded Fab Kills . | . . . . . Hacking | -11 -10 -10 -9 -8 --------- Run | Yrd Mat Min Mat Mat Machines Accessed 6 | . 3 . 3 . Terminals 3 | . 2 . 1 . Fabricators . | . . . . . Repair Stations 1 | . . . 1 . Recycling Units 1 | . 1 . . . Scanalyzers 1 | . . . 1 . Garrison Access . | . . . . . Total Hacks 17 | . 7 . 10 . Successful 14 | . 4 . 10 . Failed 3 | . 3 . . . Catastrophic . | . . . . . Database Lockouts . | . . . . . Manual 1 | . 1 . . . Terminals 6 | . 4 . 2 . Fabricators . | . . . . . Repair Stations 2 | . . . 2 . Recycling Units 3 | . 3 . . . Scanalyzers 6 | . . . 6 . Garrison Access . | . . . . . Terminal Hacks 4 | . 2 . 2 . Emergency Access Points 2 | . 1 . 1 . Transport Status 1 | . . . 1 . Hauler Manifests 1 | . 1 . . . Fabricator Hacks . | . . . . . Repair Station Hacks 2 | . . . 2 . Scan Component 1 | . . . 1 . Repair 1 | . . . 1 . Recycling Unit Hacks 2 | . 2 . . . Report Inventory 1 | . 1 . . . Retrieve Components 1 | . 1 . . . Scanalyzer 6 | . . . 6 . Insert Component 3 | . . . 3 . Analyze 3 | . . . 3 . Garrison Access Hacks . | . . . . . Unauthorized Hacks . | . . . . . Terminals . | . . . . . Fabricators . | . . . . . Repair Stations . | . . . . . Recycling Units . | . . . . . Scanalyzers . | . . . . . Garrison Access . | . . . . . Data Cores Recovered . | . . . . . Used . | . . . . . Hacking Detections 6 | . 3 . 3 . Full Trace Events 1 | . . . 1 . Feedback Events . | . . . . . Feedback Blocked . | . . . . . Robot Schematics Acquired . | . . . . . Robots Built . | . . . . . Authchips . | . . . . . Time . | . . . . . Total Robot Build Rating . | . . . . . Part Schematics Acquired 2 | . . . 2 . Parts Built . | . . . . . Authchips . | . . . . . Time . | . . . . . Total Part Build Rating . | . . . . . Parts Repaired 1 | . . . 1 . Time 26 | . . . 26 . Parts Recycled . | . . . . . Recycled Matter . | . . . . . Retrieved Matter . | . . . . . Retrieved Components 3 | . 3 . . . Parts Scanalyzed 3 | . . . 3 . Part Schematics Acquired 2 | . . . 2 . Parts Damaged . | . . . . . Bothacking | -11 -10 -10 -9 -8 ------------ Run | Yrd Mat Min Mat Mat Used RIF Installer . | . . . . . Robots Hacked . | . . . . . Non-combat . | . . . . . Combat . | . . . . . Robot Hacks Applied . | . . . . . Relay Couplers Released . | . . . . . Fabnet Peak Effective % . | . . . . . Robots Rewired . | . . . . . Allies Hacked . | . . . . . Hacks Repelled . | . . . . . Allies | -11 -10 -10 -9 -8 -------- Run | Yrd Mat Min Mat Mat Total Allies 1 | . . 1 . . Largest Group 1 | . . 1 1 . Highest-Rated Group 31 | . . 31 31 . Highest-Rated Ally 31 | . . 31 31 . Total Orders . | . . . . . Ally Attacks 4 | . . . 4 . Total Damage 22 | . . . 22 . Kills . | . . . . . Allies Corrupted . | . . . . . Allies Melted . | . . . . . Intel | -11 -10 -10 -9 -8 ------- Run | Yrd Mat Min Mat Mat Robot Analysis Total . | . . . . . Derelict Logs Recovered 1 | . . 1 . . Drone Launches . | . . . . . Drone Recoveries . | . . . . . Exploration | -11 -10 -10 -9 -8 ------------- Run | Yrd Mat Min Mat Mat Turns Passed 1641 | 116 583 87 291 564 Spaces Moved 949 | 67 285 63 188 346 Core 96 | 3 . . . 93 Treads . | . . . . . Legs 853 | 64 285 63 188 253 Wheels . | . . . . . Hover . | . . . . . Flight . | . . . . . Fastest Speed 50 | 50 120 120 120 50 Average Speed 112 | 116 120 120 120 101 Slowest Speed 120 | 120 120 120 120 120 Overloaded Moves . | . . . . . Propulsion Burnouts . | . . . . . Robots Hopped . | . . . . . Cave-ins Triggered . | . . . . . Exploration Rate (%) 28 | 3 59 14 25 39 Regions Visited 4 Branch Regions 1 Pre-discovered Areas . | . . . . . Known Exits Taken . | . . . . . Unknown Exits Taken 4 | 1 1 1 1 . Scrap Searched . | . . . . . Spaces Dug 3 | . . 2 . 1 Terrain Destroyed 5 | . . 2 . 3 Melee . | . . . . . Projectile 5 | . . 2 . 3 AOE . | . . . . . Terrain Rammed . | . . . . . Walls Destroyed . | . . . . . Machines Disabled . | . . . . . Actions | -11 -10 -10 -9 -8 --------- Run | Yrd Mat Min Mat Mat Total 1311 | 85 449 68 236 473 Wait 166 | . 106 . 26 34 Move 945 | 66 284 62 187 346 Hop . | . . . . . Pick Up 27 | 2 12 1 3 9 Fast Attach 9 | 7 . . 2 . Attach 12 | . 1 . 2 9 Detach 1 | . . . . 1 Swap 17 | 1 2 1 3 10 Drop 21 | 1 4 1 3 12 Fire 100 | 8 39 2 10 41 Melee . | . . . . . Ram 4 | . . . . 4 Kick 9 | . 1 1 . 7 Crush . | . . . . . Escape Stasis . | . . . . . Rewire . | . . . . . Trap . | . . . . . Miscellaneous . | . . . . . Route ------- -11/Scrapyard -10/Materials -10/Mines -9/Materials -8/Materials History --------- Turn | Location | Event 4 | -11/Scrapyard | Discovered new exit (range 15) 117 | -11/Scrapyard | Entered Materials 305 | -10/Materials | Build established: Mutant 335 | -10/Materials | Discovered new exit (range 14) 374 | -10/Materials | Destroyed 9 combat bots 700 | -10/Materials | Entered Mines 722 | -10/Mines | Learned 2 Materials zone layouts 722 | -10/Mines | Discovered new exit (range 13) 735 | -10/Mines | Received a Mining Laser from a helpful Derelict 787 | -10/Mines | Entered Materials 787 | -9/Materials | Accompanied by 1 ally 787 | -9/Materials | Evolved 2 slots: Propulsion x2 905 | -9/Materials | Repaired Assault Rifle 992 | -9/Materials | Discovered new exit (range 3) 1078 | -9/Materials | Entered another Materials area 1078 | -8/Materials | Evolved 2 slots: Utility x2 1588 | -8/Materials | Released all parts (6) 1618 | -8/Materials | Lost 10 parts (1p3n3u3w) 1627 | -8/Materials | Core integrity fell below 50% 1638 | -8/Materials | Core integrity fell below 20% 1642 | -8/Materials | Destroyed by G-47 Trooper with Particle Gun Last Messages --------------- 01588_ Released Imp. Carbon-fiber Leg. 01588_ Released Med. Storage Unit. 01588_ Released Signal Interpreter. 01588_ Released Imp. Ion Engine. 01593_ Slammed into U-05 Engineer. 01593_ ALERT: Construction progress impeded, dispatching reinforcements to local area. 01601_ Dropped Titanium Leg. 01603_ Acquired VSS Leg. 01606_ W-25 Informer sends out distress signal. 01608_ Slammed into S-10 Pest. 01611_ ALERT: Hostiles spotted, dispatching reinforcements to Terminal M003. 01616_ Slammed into R-06 Scavenger. 01616_ Destabilizing: Core damaged (-11). [Achievement: Hunted] 01637_ G-47 Trooper suffers critical hit (Destroy). 01641_ ALERT: Suspicious intruders detected, dispatching Cutter reinforcements to area. Map ----- +----------------------------------------------------+ | ?????????????????????????????????#] # ### | | ?????????????????? [ ### ### ! # #?? | | ?????????????????? / # #?? | | ?????????????????? ### ###### #?? | | ?????????????????????????????# ###### ### | | ???????????????????????? ????# # | | ???????????????????????? ????########## # | | ???????????????????????? ?????????????# #? | | ???????????????????????? ????????##???# #? | | ???????????????????????? ??????? =#???# #?? | | ???????????????????????? ?????? #???# #?? | | ???????????????????????? #??""" #???# #?# | | ???????????????????????# # """"" ##### ### | | ???????????????????????# # """"" + | | ???????????????????????# # """"" ######### | | ???????????????????????# # """ #???????# | | ???????????????????????# # #???????? | | ???????????????????????# #?? ?????????? | | ??????????#####????????# #?###+###????????? | | ??????????# """?####### ### ########## | | ??????????# """?# gs | | ??????????# """ # s | | ??????????# # sg | | ??????????# + ####### ########## | | ??????????# # #?????#######????????# | | ??????????########@ #????????????????????# | | ?????????????????# #????????????????????# | | ????????????????? #???????????????????? | | ???????????????? ??????????????????? | | ??????????????? ###?????????????????? | | ??????????????########???????????????????? | | ?????????????????????????????????????????? | | ?????????????????????????????????????????## | | ??????????????????????????????????????????? | | ??????????????????????????????????????????? | | ??????????????????????????????????????????? | | ???????????H??????????????????????????????? | | ??????????????????????????????????????????? | | ??????????????????????????????????????????? | | ??????????????????????????????????????????? | | ??????????????????????????????????????????? | | ??????????????????????????????????????????? | | ??????????????????????????????????????????? | | ??????????????????????????????????????????? | | ??????????????????????????????????????????? | | ??????????????????????????????????????????? | | ??????????????????????????????????????????? | | ??????????????????????????????????????????? | | ??????????????????????????????????????????? | | ??????????????????????????????????????????? | +----------------------------------------------------+ Best States ------------- Heat Dissipation 31 Energy Generation 14 Energy Capacity 265 Matter Stores 300 Matter Capacity 300 Sight Range 16 Robot Scan Range 14 Terrain Scan Range 16 Terrain Scan Density 10 Armor Coverage 150 Evasion (%) 55 Item Schematics ----------------- Sensor Array | -9/Materials | Scanalyzed Imp. Heat Sink | -9/Materials | Scanalyzed Robot Schematics ------------------ None Fabricated ------------ Nothing Alien Tech Used ----------------- None Achievements -------------- Hunted Challenges ------------ None Game ------ Seed ActuatorBottomlessWand Manual? 0 Play Time 00:27:58 Cumulative 30.9 hours Start 2024.03.12 @ 17:34:27 End 2024.03.12 @ 17:59:26 Sessions 1 Manual Loads 0 Difficulty Rogue Special Mode None Game No. 40 Rogue 40 Adventurer 0 Explorer 0 Win Type - Total 0 Types 0/0/0/0/0/0/0/0/0 Lore% 12 Gallery% 28 Achievement% 23 Wizard Run 0 Options --------- Layout 1 ASCII 0 Keyboard 1 Movement Vi Keybinds 0 Fullscreen 2 Font 24/Smallcaps Map View 50x35 Zoom Use 0% Tactical HUD 1 Map Filters NONE Filters NONE Steam 1 RUN: c12175d4-cdaa-42c9-8de3-223b4fd7fac9